Cogmind - Beta 14 @@@ ROGUE MODE // 2025.01.07 @ 20:32:29 Player: Lako Result: Destroyed by G-34 Mercenary with Small Laser Performance ------------- Evolutions (1) 500 Regions Visited (3) 600 Robots Destroyed (14) 70 Value Destroyed (354) 354 Prototype IDs (0) 0 Alien Tech Used (0) 0 Bonus (114) 114 TOTAL SCORE: 1638 Bonus ------- High Alert Combat Kills 64 Follower Combat Kills 50 Cogmind --------- Core Integrity 0/400 Matter 273/300 Energy 124/125 System Corruption 0% Temperature Cool (6) Movement Core (50) Location -9/Materials Parts ------- > --- POWER (1) -------- Light Ion Engine > --- PROPULSION (2) --- (None) > --- UTILITY (4) ------ (None) > --- WEAPON (2) ------- (None) > --- INVENTORY (5) ---- Weight Redist. System Improved Sensor Array Peak State ------------ > --- POWER ------------ Light Ion Engine > --- PROPULSION ------- Flight Unit Flight Unit > --- UTILITY ---------- Heat Sink Weight Redist. System Structural Scanner Signal Interpreter > --- WEAPON ----------- Heavy EM Pulse Gun Improved Light Cannon > --- INVENTORY -------- Light Ion Engine Light Assault Rifle Shotgun Mining Laser [Rating: 12] Favorites ----------- Power Light Ion Engine Engine Light Ion Engine Propulsion Flight Unit Treads Light Treads Flight Unit Flight Unit Utility Signal Interpreter Device Structural Scanner Storage Small Storage Unit Processor Signal Interpreter Protection Weapon Shielding Weapon Light Assault Rifle Energy Gun Heavy EM Pulse Gun Ballistic Gun Light Assault Rifle Ballistic Cannon Improved Light Cannon Special Weapon Mining Laser Build | -11 -10 -10 -9 ------- Run | Yrd Mat Min Mat Slots Evolved 2 | . . . 2 Power . | . . . . Propulsion . | . . . . Utility 2 | . . . 2 Weapon . | . . . . Parts Attached 25 | 6 8 . 11 Power 6 | 1 2 . 3 Engine 6 | 1 2 . 3 Core . | . . . . Reactor . | . . . . Propulsion 5 | 2 2 . 1 Treads 2 | 2 . . . Leg . | . . . . Wheel . | . . . . Hover . | . . . . Flight 3 | . 2 . 1 Utility 7 | 1 3 . 3 Device 4 | . 1 . 3 Storage 1 | 1 . . . Processor 1 | . 1 . . Hackware . | . . . . Protection 1 | . 1 . . Artifact . | . . . . Weapon 7 | 2 1 . 4 Energy Gun 1 | . 1 . . Energy Cannon . | . . . . Ballistic Gun 4 | 2 . . 2 Ballistic Cannon 1 | . . . 1 Launcher . | . . . . Special Weapon 1 | . . . 1 Impact Weapon . | . . . . Slashing Weapon . | . . . . Piercing Weapon . | . . . . Special Melee Weapon . | . . . . Unidentified Prototypes . | . . . . Parts Lost 12 | . . . 12 Power 2 | . . . 2 Propulsion 3 | . . . 3 Utility 3 | . . . 3 Weapon 4 | . . . 4 Highest Loss Streak 5 | . . . 5 To Critical Strikes . | . . . . Average Slot Usage (%) 85 | . 93 100 67 Engine 11 | . 14 14 8 Treads 6 | . 16 . . Flight 14 | . 10 28 10 Device 15 | . 5 14 26 Storage 3 | . 8 . . Processor 8 | . 3 14 9 Protection 1 | . 5 . . Energy Gun 5 | . 1 14 3 Ballistic Gun 14 | . 26 14 2 Ballistic Cannon 1 | . . . 3 Peak Build Rating 12 | 6 8 9 12 Average Rating 7 | 3 6 8 8 On Entrance 5 | . 6 8 8 Naked Turns 6 | . . . 6 Heaviest Build 13 | 12 13 8 12 Greatest Support 40 | 40 40 8 14 Greatest Overweight (x) . | . . . . Average Overweight (x) . | . . . . Largest Inventory Capacity 8 | 8 8 5 5 Average Capacity 5 | 7 6 5 5 Most Carried 8 | 4 8 5 5 Average Carried 3 | 2 4 4 3 Final Capacity 8 | 8 5 5 5 Final Carried 5 | 2 4 5 2 Class Distribution -------------------- 100% | Mutant Dominant Class ---------------- Mutant | -10/Materials Mutant | -10/Mines Mutant | -9/Materials Resources | -11 -10 -10 -9 ----------- Run | Yrd Mat Min Mat Matter Collected 544 | 217 130 20 177 Remotely . | . . . . Salvage Created 351 | . 157 . 194 Parts 21 | . 13 . 8 Haulers Intercepted . | . . . . Recyclers Shooed . | . . . . Parts Field Recycled . | . . . . Retrieved Matter . | . . . . Parts Self-Destructed . | . . . . Prevented . | . . . . Kills | -11 -10 -10 -9 ------- Run | Yrd Mat Min Mat Combat Hostiles Destroyed 14 | . 6 . 8 Guns 12 | . 6 . 6 Cannons 2 | . . . 2 Classes Destroyed 3 | . 2 . 1 Swarmer 6 | . 3 . 3 Grunt 6 | . 3 . 3 Sentry 2 | . . . 2 Best Kill Streak 6 | . 5 . 6 Combat Bots Only 6 | . 5 . 6 Max Kills in Single Turn 1 | . 1 . 1 Gunslinging . | . . . . Exploded . | . . . . Melee . | . . . . Uniques/NPCs Destroyed . | . . . . Combat | -11 -10 -10 -9 -------- Run | Yrd Mat Min Mat Hostile Shots Fired 167 | . 24 . 143 Missed 65 | . 9 . 56 Damage Taken 1201 | . 148 . 1053 Core 442 | . 38 . 404 Absorbed by Shields . | . . . . Core Remaining (%) 92 | 100 . 84 . Volleys Fired 41 | . 15 . 26 Largest 2 | . 2 . 2 Hottest 100 | . 40 . 100 Shots Fired 77 | . 30 . 47 Gun 70 | . 30 . 40 Cannon 4 | . . . 4 Launcher . | . . . . Special 3 | . . . 3 Kinetic 70 | . 30 . 40 Thermal 3 | . . . 3 Explosive . | . . . . Electromagnetic 4 | . . . 4 Robot Hit Streak 13 | . 4 . 13 Robot Miss Streak 4 | . 2 . 4 Penetration Max . | . . . . Secondary Targets 6 | . 1 . 5 Max Gunslinging Chain 1 | . 1 . 1 Shots Hit Robots 54 | . 17 . 37 Core Hits 22 | . 11 . 11 Critical Kills . | . . . . Critical Parts Destroyed . | . . . . Critical Strikes . | . . . . Melee Attacks . | . . . . Impact . | . . . . Slashing . | . . . . Piercing . | . . . . Sneak Attacks . | . . . . Combat Hostiles . | . . . . Follow-up Attacks . | . . . . Damage Inflicted 740 | . 154 . 586 Guns 629 | . 152 . 477 Cannons 37 | . . . 37 Explosions . | . . . . Melee . | . . . . Ramming 2 | . 2 . . Kinetic 613 | . 152 . 461 Thermal 72 | . . . 72 Explosive . | . . . . Electromagnetic 53 | . . . 53 Impact . | . . . . Slashing . | . . . . Piercing . | . . . . Highest Corruption . | . . . . Average Corruption . | . . . . Corruption Purged . | . . . . Corruption Blocked . | . . . . Overload Shots . | . . . . Overflow Damage . | . . . . Projectiles . | . . . . Explosions . | . . . . Melee . | . . . . Knockbacks . | . . . . Impact . | . . . . Kinetic . | . . . . Secondary . | . . . . Self-Inflicted Damage . | . . . . Shots . | . . . . Rammed 1 | . 1 . . Targets Rammed 1 | . 1 . . Kicked . | . . . . Crushed . | . . . . Highest Temperature 12 | . 12 . 10 Average Temperature 6 | . 7 . 4 Received Heat Transfer 528 | . 48 . 480 Siege Activations . | . . . . Robots Corrupted . | . . . . Combat Hostiles . | . . . . Parts Fried . | . . . . Impact Corruptions . | . . . . Robots Melted . | . . . . Combat Hostiles . | . . . . Parts Melted . | . . . . Heat Transferred 150 | . . . 150 Parts Sabotaged . | . . . . Parts Stolen . | . . . . Parts Stripped . | . . . . Power Chain Reactions . | . . . . Alert | -11 -10 -10 -9 ------- Run | Yrd Mat Min Mat Peak Influence 839 | . 237 14 839 Initial 14 | . . 14 5 Average 181 | . 135 14 364 Maximum Alert Level 3 | . 1 . 3 Low Security (%) 68 | 100 86 100 25 Level 1 13 | . 13 . 24 Level 2 15 | . . . 42 Level 3 2 | . . . 8 Level 4 . | . . . . Level 5 . | . . . . High Security . | . . . . Max Security . | . . . . Squads Dispatched 5 | . 1 . 4 Investigation 1 | . . . 1 Extermination . | . . . . Reinforcement 4 | . 1 . 3 Assault . | . . . . Garrison . | . . . . Intercept . | . . . . Searches Triggered 1 | . . . 1 Construction Impeded . | . . . . Haulers Reinforced . | . . . . Active Scanning Responses . | . . . . Cargo Convoy Interrupts . | . . . . Stealth | -11 -10 -10 -9 --------- Run | Yrd Mat Min Mat Distress Signals 5 | . 1 . 4 Communications Jammed . | . . . . Distress Signals . | . . . . Times Spotted 53 | . 10 . 43 Peak Tracking Total 12 | . 5 . 12 Tactical Retreats 11 | . 1 . 10 Traps | -11 -10 -10 -9 ------- Run | Yrd Mat Min Mat Traps Triggered . | . . . . Indirectly . | . . . . Trap Hack Attempts . | . . . . Triggered . | . . . . Disarmed . | . . . . Reprogrammed 4 | . 4 . . Reused . | . . . . Traps Extracted . | . . . . Installed . | . . . . Triggered . | . . . . Machines | -11 -10 -10 -9 ---------- Run | Yrd Mat Min Mat Machines Disabled . | . . . . Max in Single Turn . | . . . . Machines Repaired . | . . . . Machines Dismantled . | . . . . Machines Sabotaged . | . . . . Overloaded Fab Kills . | . . . . Hacking | -11 -10 -10 -9 --------- Run | Yrd Mat Min Mat Machines Accessed 4 | . 2 . 2 Terminals 4 | . 2 . 2 Fabricators . | . . . . Repair Stations . | . . . . Recycling Units . | . . . . Scanalyzers . | . . . . Garrison Access . | . . . . Total Hacks 14 | . 10 . 4 Successful 4 | . 3 . 1 Failed 10 | . 7 . 3 Catastrophic 4 | . 3 . 1 Database Lockouts . | . . . . Manual 3 | . 2 . 1 Terminals 14 | . 10 . 4 Fabricators . | . . . . Repair Stations . | . . . . Recycling Units . | . . . . Scanalyzers . | . . . . Garrison Access . | . . . . Terminal Hacks 4 | . 3 . 1 Record 2 | . 1 . 1 Reprogram Traps 2 | . 2 . . Fabricator Hacks . | . . . . Repair Station Hacks . | . . . . Recycling Unit Hacks . | . . . . Scanalyzer . | . . . . Garrison Access Hacks . | . . . . Unauthorized Hacks . | . . . . Terminals . | . . . . Fabricators . | . . . . Repair Stations . | . . . . Recycling Units . | . . . . Scanalyzers . | . . . . Garrison Access . | . . . . Data Cores Recovered . | . . . . Used . | . . . . Hacking Detections 4 | . 2 . 2 Full Trace Events 1 | . . . 1 Feedback Events . | . . . . Feedback Blocked . | . . . . Robot Schematics Acquired . | . . . . Robots Built . | . . . . Authchips . | . . . . Time . | . . . . Total Robot Build Rating . | . . . . Part Schematics Acquired . | . . . . Parts Built . | . . . . Authchips . | . . . . Time . | . . . . Total Part Build Rating . | . . . . Parts Repaired . | . . . . Time . | . . . . Parts Recycled . | . . . . Recycled Matter . | . . . . Retrieved Matter . | . . . . Retrieved Components . | . . . . Parts Scanalyzed . | . . . . Part Schematics Acquired . | . . . . Parts Damaged . | . . . . Bothacking | -11 -10 -10 -9 ------------ Run | Yrd Mat Min Mat Used RIF Installer . | . . . . Robots Hacked . | . . . . Non-combat . | . . . . Combat . | . . . . Robot Hacks Applied . | . . . . Relay Couplers Released . | . . . . Fabnet Peak Effective % . | . . . . Robots Rewired . | . . . . Allies Hacked . | . . . . Hacks Repelled . | . . . . Allies | -11 -10 -10 -9 -------- Run | Yrd Mat Min Mat Total Allies 1 | . . 1 . Largest Group 1 | . . 1 1 Highest-Rated Group 31 | . . 31 31 Highest-Rated Ally 31 | . . 31 31 Total Orders . | . . . . Ally Attacks 12 | . . . 12 Total Damage 207 | . . . 207 Kills 2 | . . . 2 Allies Corrupted . | . . . . Allies Melted . | . . . . Intel | -11 -10 -10 -9 ------- Run | Yrd Mat Min Mat Robot Analysis Total . | . . . . Derelict Logs Recovered 2 | . . 2 . Drone Launches . | . . . . Drone Recoveries . | . . . . Exploration | -11 -10 -10 -9 ------------- Run | Yrd Mat Min Mat Turns Passed 1242 | 89 429 275 449 Spaces Moved 1989 | 55 532 576 826 Core 203 | 9 . . 194 Treads 173 | 46 127 . . Legs . | . . . . Wheels . | . . . . Hover . | . . . . Flight 1613 | . 405 576 632 Fastest Speed 37 | 50 37 37 37 Average Speed 49 | 142 66 37 41 Slowest Speed 160 | 160 160 37 50 Overloaded Moves . | . . . . Propulsion Burnouts . | . . . . Robots Hopped 16 | . 1 4 11 Cave-ins Triggered . | . . . . Exploration Rate (%) 43 | 4 48 65 56 Regions Visited 3 Branch Regions 1 Pre-discovered Areas 1 | . . 1 . Known Exits Taken 2 | . 1 1 . Unknown Exits Taken 1 | 1 . . . Scrap Searched 1 | . . 1 . Spaces Dug . | . . . . Terrain Destroyed 1 | . . . 1 Melee . | . . . . Projectile 1 | . . . 1 AOE . | . . . . Terrain Rammed . | . . . . Walls Destroyed . | . . . . Machines Disabled . | . . . . Actions | -11 -10 -10 -9 --------- Run | Yrd Mat Min Mat Total 2156 | 64 588 633 871 Wait 75 | . 5 59 11 Move 1954 | 54 529 567 804 Hop 16 | . 1 4 11 Pick Up 20 | 4 11 2 3 Fast Attach 11 | 4 5 . 2 Attach 12 | 2 3 . 7 Detach 8 | . 5 . 3 Swap 2 | . . . 2 Drop 16 | . 13 1 2 Fire 41 | . 15 . 26 Melee . | . . . . Ram . | . . . . Kick . | . . . . Crush 1 | . 1 . . Escape Stasis . | . . . . Rewire . | . . . . Trap . | . . . . Miscellaneous . | . . . . Route ------- -11/Scrapyard -10/Materials (discovered 4 exits: *Mat / *Min x2 / [Sub]) -10/Mines -9/Materials (discovered 1 exit: [*Mat]) History --------- Turn | Location | Event 6 | -11/Scrapyard | Discovered new exit (range 14) 90 | -11/Scrapyard | Entered Materials 314 | -10/Materials | Build established: Mutant 392 | -10/Materials | Discovered new exit (range 15) 394 | -10/Materials | Discovered new exit (range 11) 402 | -10/Materials | Identified exit to Mines 457 | -10/Materials | Discovered new exit (range 16) 462 | -10/Materials | Identified exit to Materials 516 | -10/Materials | Discovered exit to Mines (range 8) 519 | -10/Materials | Entered Mines 528 | -10/Mines | Learned location of Storage (-7) 554 | -10/Mines | A weapon hastily lodged in a ceiling crevice suddenly fell to the ground 560 | -10/Mines | Learned Materials stockpile data 709 | -10/Mines | Discovered exit to Materials (range 14) 721 | -10/Mines | Received a Mining Laser from a helpful Derelict 794 | -10/Mines | Entered Materials 794 | -9/Materials | Accompanied by 1 ally 794 | -9/Materials | Evolved 2 slots: Utility x2 1150 | -9/Materials | Discovered new exit (range 13) 1158 | -9/Materials | Lost 5 parts (1p1n2u1w) 1185 | -9/Materials | Core integrity fell below 50% 1194 | -9/Materials | Search patrols dispatched 1200 | -9/Materials | Core integrity fell below 20% 1241 | -9/Materials | Lost 5 parts (1p1n1u2w) 1243 | -9/Materials | Destroyed by G-34 Mercenary with Small Laser Last Messages --------------- Y-45 Defender destroyed. Switching to secondary target: G-47 Trooper. R-06 Scavenger collects Imp. Ion Engine. S-10 Pest destroyed. Switching to secondary target: G-34 Mercenary. R-06 Scavenger collects Lgt. Ion Engine. R-06 Scavenger collects Heat Sink. R-06 Scavenger collects Lgt. Ion Engine. ALERT: Heightened foreign activity detected, multiple search patrols dispatched. G-34 Mercenary destroyed. Switching to secondary target: G-47 Trooper. R-06 Scavenger collects Heat Sink. Signal Interpreter destroyed. G-34 Mercenary destroyed. Assault Rifle destroyed. Critical hit (Burn: +37). Shotgun destroyed. Acquired 135 matter. Acquired Lgt. Ion Engine. Map ----- +----------------------------------------------------+ | ?????????????????????????#""" # | | ?????????????????????????# "" # | | ??????????????????????? #""" ## | | ?????????????????????T" #""" #? | | ????????????????????? #""" #? | | ????????????????????? # " ## | | ?????????????????????# # # | | ?????????????????????# # # | | ???????????#?????????# # # | | ???????????+ ????????# ###+#### | | ???????????# ????????/ #?# #??# | | ?#?###+##### ????????# #?# #??# | | ?# # ???????# #?# #??# | | ?# """ """ # ???????# #?# #??# | | ?# """ """ # ???????# ###+##### | | ?# """ """ ##/######## # !! | | ?# """ """ ## ## # !! | | ?# """ """ ## [%""" ## + !! * | | ?# ## """ ## # | | #######+##### !%""" ## ######### | | # #?# ## ## ! #?? | | # g #######+### # #?? | | # g # # #?? | | # [ # + #?? | | # # # #?? | | # @/ """ # #?? | | # # """ ===# #?? | | # # """ ===# #?? | | ########### ===# #?? | | ????????? ######?? | | ????????< #??????? | | ??????? ?????? | | ???????###+########### ####????? | | ?????????????????????#####???????? | | ?????????????????????????????????? | | ?????????????????????????????????? | | ?????????????????????????????????? | | ?????????????????????????????????? | | ?????????????????????????????????? | | ?????????????????????????????????? | | ?????????????????????????????????? | | ?????????????????????????????????? | | ?????????????????????????????????? | | ?????????????????????????????????? | | ?????????????????????????????????? | | ?????????????????????????????????? | | ?????????????????????????????????? | | ?????????????????????????????????? | | ?????????????????????????????????? | | ?????????????????????????????????? | +----------------------------------------------------+ Best States ------------- Heat Dissipation 38 Energy Generation 10 Energy Capacity 250 Matter Stores 300 Matter Capacity 300 Sight Range 16 Robot Scan Range 15 Terrain Scan Density 10 Additional Mass Support 6 Weapon Shielding 33 Evasion (%) 62 Recoil Reduction 2 Item Schematics ----------------- None Robot Schematics ------------------ None Fabricated ------------ Nothing Alien Tech Used ----------------- None Achievements -------------- None Challenges ------------ None Game ------ Seed TimingShieldClaw Manual? 0 Play Time 00:38:54 Cumulative 5.5 hours Start 2025.01.07 @ 19:55:16 End 2025.01.07 @ 20:32:29 Sessions 1 Manual Loads 0 Difficulty Rogue Special Mode None Game No. 5 Rogue 5 Adventurer 0 Explorer 0 Win Type - Total 0 Types 0/0/0/0/0/0/0/0/0 Lore% 3 Gallery% 8 Achievement% 9 Wizard Run 0 Options --------- Layout 1 ASCII 0 Keyboard 1 Movement Arrows Keybinds 0 Fullscreen 1 Font 32/SmallcapsGlow Map View 50x35 Zoom Use 0% Tactical HUD 0 Map Filters NONE Filters NONE Steam 1 RUN: e6dee4cb-d8ca-4386-be97-3afb0d217b2f